bitfinex/quotes_SOLUSD_20250902
["timestamp","ask_amount","ask_price","bid_price","bid_amount"]
[1756801435766,0.48,203.57,203.56,26.14216157]
[1756801435987,10.8343202,203.57,203.5,11.0243202]
[1756801436175,0.48,203.57,203.52,26.0]
[1756801436379,10.8343202,203.57,203.52,26.0]
[1756801436685,0.48,203.56,203.52,26.0]
[1756801437084,0.48,203.56,203.53,0.14216157]
[1756801438191,10.8343202,203.56,203.54,26.0]
[1756801438366,10.8343202,203.56,203.55,0.14216157]
[1756801439690,0.48,203.56,203.55,0.14216157]
[1756801439884,0.48,203.61,203.55,26.81216157]
[1756801440081,10.3543202,203.59,203.55,26.14216157]
[1756801440377,10.3543202,203.59,203.55,26.0]
[1756801440575,10.3543202,203.59,203.53,36.52648177]
[1756801440766,0.54,203.64,203.58,10.3543202]
[1756801440969,10.8943202,203.64,203.59,10.49648177]
[1756801441274,0.54,203.64,203.59,10.49648177]
[1756801441483,0.54,203.64,203.59,7.09836509]
[1756801441683,0.54,203.64,203.61,0.14216157]
[1756801441877,0.06,203.64,203.61,0.14216157]
[1756801442096,0.54,203.64,203.61,0.14216157]
[1756801442291,7.49620352,203.64,203.61,0.14216157]
[1756801443165,6.95620352,203.62,203.57,6.95620352]
[1756801443488,3.26317962,203.62,203.58,0.14216157]
[1756801443684,2.78317962,203.63,203.58,0.14216157]
[1756801443998,2.84317962,203.64,203.58,0.14216157]
[1756801444297,2.84317962,203.64,203.6,0.14216157]
[1756801444693,0.48,203.63,203.6,0.14216157]
[1756801444883,0.06,203.64,203.6,0.14216157]
[1756801445084,2.78317962,203.63,203.6,0.14216157]
[1756801445695,3.26317962,203.62,203.57,0.14216157]
[1756801445890,2.78317962,203.61,203.57,0.14216157]
[1756801446096,2.78317962,203.58,203.52,3.45317962]
[1756801446394,2.78317962,203.61,203.55,2.92534119]
[1756801446590,2.78317962,203.61,203.57,0.14216157]
[1756801447401,0.48,203.63,203.57,3.59534119]
[1756801447571,2.78317962,203.62,203.57,3.59534119]
[1756801447974,3.26317962,203.61,203.57,0.14216157]
[1756801448173,2.78317962,203.59,203.57,0.14216157]
[1756801448778,2.78317962,203.59,203.55,0.14216157]
[1756801448991,0.48,203.6,203.55,0.14216157]
[1756801449192,2.78317962,203.6,203.55,0.84216157]
[1756801450077,2.78317962,203.59,203.55,0.14216157]
[1756801450479,0.48,203.6,203.55,0.14216157]
[1756801450686,3.26317962,203.59,203.55,0.14216157]
[1756801451004,2.78317962,203.59,203.54,0.14216157]
[1756801451188,38.64,203.63,203.54,0.14216157]
[1756801451189,3.26317962,203.58,203.54,0.14216157]
[1756801451389,2.78317962,203.58,203.54,0.14216157]
[1756801451685,0.48,203.6,203.54,0.14216157]
[1756801451885,2.78317962,203.59,203.54,0.14216157]
[1756801452193,3.26317962,203.59,203.54,0.84216157]
[1756801453589,2.78317962,203.59,203.54,0.84216157]
[1756801454388,2.78317962,203.59,203.54,3.62534119]
[1756801454596,3.26317962,203.59,203.54,0.84216157]
[1756801454919,2.78317962,203.59,203.54,0.84216157]
[1756801455121,0.48,203.61,203.54,3.62534119]
[1756801455413,2.78317962,203.59,203.54,3.62534119]
[1756801455616,0.48,203.61,203.56,0.14216157]
[1756801455617,2.78317962,203.6,203.56,0.14216157]
[1756801455796,3.26317962,203.61,203.56,2.92534119]
[1756801455991,3.26317962,203.61,203.56,0.14216157]
[1756801456494,38.64,203.63,203.56,0.14216157]
[1756801456495,3.26317962,203.6,203.56,0.14216157]
[1756801457793,3.26317962,203.6,203.54,2.81317962]
[1756801457989,3.26317962,203.6,203.55,0.14216157]
[1756801458604,2.78317962,203.59,203.55,0.14216157]
[1756801458915,2.78317962,203.56,203.54,0.03]
[1756801459117,0.48,203.59,203.54,0.03]
[1756801459118,2.78317962,203.55,203.54,0.03]
[1756801459493,3.26317962,203.55,203.54,0.03]
[1756801459827,2.78317962,203.55,203.54,0.03]
[1756801460800,3.26317962,203.55,203.54,0.03]
[1756801461195,2.78317962,203.55,203.54,0.03]
[1756801462307,0.48,203.57,203.54,0.03]
[1756801462510,2.78317962,203.55,203.54,0.03]
[1756801464817,3.26317962,203.55,203.54,0.03]
[1756801465226,16.85877363,203.55,203.54,0.03]
[1756801469520,0.48,203.59,203.54,0.03]
[1756801469718,11.13271848,203.6,203.54,0.03]
[1756801469719,2.78317962,203.55,203.54,0.03]
[1756801470029,38.5,203.55,203.54,0.03]
[1756801471106,41.28317962,203.55,203.54,0.03]
[1756801475924,54.87877363,203.55,203.54,0.03]
[1756801476144,55.35877363,203.55,203.54,0.03]
[1756801476516,54.87877363,203.55,203.54,0.03]
[1756801477228,13.59559401,203.55,203.54,0.03]
[1756801477545,13.59559401,203.55,203.54,0.73]
[1756801477546,38.5,203.55,203.54,0.73]
[1756801478151,41.28317962,203.55,203.54,0.73]
[1756801479548,13.59559401,203.59,203.54,0.73]
[1756801479725,38.5,203.58,203.54,0.73]
[1756801479921,2.78317962,203.56,203.55,0.7]
[1756801480134,41.28317962,203.57,203.54,0.03]
[1756801480329,2.78317962,203.55,203.54,0.03]
[1756801480752,2.78317962,203.55,203.54,0.73]
[1756801482236,2.78317962,203.55,203.54,0.03]
[1756801482446,2.78317962,203.55,203.54,0.73]
[1756801482649,38.5,203.57,203.54,0.73]
[1756801482845,2.78317962,203.55,203.54,0.73]
[1756801483230,2.78317962,203.55,203.54,0.03]
[1756801483426,2.78317962,203.55,203.54,0.73]
[1756801483933,2.78317962,203.55,203.54,0.03]
[1756801484439,13.59559401,203.56,203.54,0.03]
[1756801484440,16.37877363,203.56,203.54,0.03]
[1756801485356,13.59559401,203.56,203.54,0.03]
[1756801485549,13.59559401,203.56,203.54,0.73]
[1756801486337,13.59559401,203.58,203.55,0.7]
[1756801486546,38.5,203.57,203.56,0.7]
[1756801487263,133.8,203.6,203.56,3.48317962]
[1756801487436,38.5,203.59,203.57,2.78317962]
[1756801487636,38.5,203.59,203.57,0.7]
[1756801487856,38.5,203.59,203.54,2.95534119]
[1756801488150,41.28317962,203.59,203.54,3.65534119]
[1756801488345,2.78317962,203.55,203.54,0.03]
[1756801488556,41.28317962,203.55,203.54,0.03]
[1756801489957,38.5,203.55,203.54,0.03]
[1756801491259,41.28317962,203.55,203.54,0.03]
[1756801491460,55.35877363,203.55,203.54,0.03]
[1756801491957,54.87877363,203.55,203.54,0.03]
[1756801493146,55.35877363,203.55,203.54,0.03]
[1756801493563,60.27157146,203.55,203.54,0.03]
[1756801494461,13.73775558,203.54,203.53,0.03]
[1756801494645,16.66309677,203.54,203.53,0.03]
[1756801494844,17.14309677,203.54,203.53,0.03]
[1756801495052,22.05613597,203.54,203.53,0.03]
[1756801496269,48.05613597,203.54,203.53,0.03]
[1756801496446,39.87991715,203.52,203.51,0.03]
[1756801496769,0.28432314,203.5,203.49,0.03]
[1756801497067,200.09581525,203.5,203.49,0.03]
[1756801497267,2.78317962,203.41,203.38,0.7]
[1756801497444,41.28317962,203.41,203.38,0.7]
[1756801497640,38.5,203.41,203.38,0.7]
[1756801497875,38.5,203.41,203.4,0.9]
[1756801500183,54.87877363,203.41,203.4,0.2]
[1756801500667,0.48,203.47,203.4,0.9]
[1756801500847,13.59559401,203.42,203.4,0.9]
[1756801501042,38.5,203.41,203.4,0.2]
[1756801501239,52.09559401,203.41,203.4,0.2]
[1756801501671,56.45369715,203.41,203.4,0.2]
[1756801501892,13.59559401,203.41,203.4,0.9]
[1756801502080,52.11559401,203.41,203.4,0.9]
[1756801504280,13.59559401,203.41,203.4,0.9]
[1756801504473,52.11559401,203.41,203.4,0.9]
[1756801505151,52.11559401,203.41,203.4,0.2]
[1756801505351,52.11559401,203.41,203.4,0.9]
[1756801505552,38.52,203.41,203.4,0.9]
[1756801507886,42.87810314,203.41,203.4,0.2]
[1756801508457,42.87810314,203.41,203.4,0.9]
[1756801508976,38.52,203.41,203.4,0.9]
[1756801509682,38.52,203.41,203.4,0.2]
[1756801510064,56.95369715,203.41,203.4,0.2]
[1756801510268,61.86987629,203.41,203.4,0.2]
[1756801510479,18.71802029,203.41,203.4,0.2]
[1756801510698,62.15419943,203.41,203.4,0.2]
[1756801513399,57.23802029,203.41,203.4,0.2]
[1756801513588,13.59559401,203.41,203.4,0.2]
[1756801513795,17.95369715,203.41,203.4,0.2]
[1756801514100,52.11559401,203.41,203.4,0.86]
[1756801515093,52.11559401,203.41,203.4,0.2]
[1756801515298,13.59559401,203.41,203.4,0.86]
[1756801515495,52.11559401,203.41,203.4,0.86]
[1756801515695,56.47369715,203.41,203.4,0.86]
[1756801516198,52.11559401,203.41,203.4,0.86]
[1756801516499,38.52,203.41,203.4,0.86]
[1756801517772,52.11559401,203.41,203.4,0.2]
[1756801517975,56.47369715,203.41,203.4,0.86]
[1756801518396,38.52,203.41,203.4,0.86]
[1756801518994,56.47369715,203.41,203.4,0.2]
[1756801520401,52.11559401,203.41,203.4,0.2]
[1756801520704,56.47369715,203.41,203.4,0.2]
[1756801522106,52.11559401,203.41,203.4,0.86]
[1756801522276,13.59559401,203.43,203.4,0.86]
[1756801522480,38.52,203.42,203.4,0.86]
[1756801522681,52.11559401,203.42,203.41,0.66]
[1756801523187,13.59559401,203.41,203.4,0.2]
[1756801523693,38.52,203.42,203.4,5.77642084]
[1756801523898,38.52,203.42,203.41,0.66]
[1756801523899,52.11559401,203.42,203.41,0.66]
[1756801524798,133.86,203.49,203.41,9.93428228]
[1756801524997,13.59559401,203.48,203.44,4.35810314]
[1756801525188,38.52,203.47,203.45,0.66]
[1756801525581,0.06,203.49,203.46,0.66]
[1756801525801,38.52,203.48,203.47,0.66]
[1756801526702,0.06,203.49,203.48,4.91448791]
[1756801526895,0.06,203.49,203.48,5.57448791]
[1756801526896,38.58,203.49,203.48,5.57448791]
[1756801528896,38.58,203.49,203.48,0.66]
[1756801529112,38.58,203.49,203.45,4.35810314]
[1756801529315,38.58,203.49,203.46,0.66]
[1756801529499,42.93810314,203.49,203.46,0.66]
[1756801530086,42.93810314,203.49,203.46,5.57490992]
[1756801530289,13.59559401,203.48,203.46,4.91490992]
[1756801530611,38.52,203.47,203.46,4.91490992]
[1756801531709,13.59559401,203.46,203.42,4.91593746]
[1756801531886,42.87810314,203.45,203.42,4.91593746]
[1756801532089,42.87810314,203.45,203.42,5.57593746]
[1756801532608,4.35810314,203.43,203.42,4.91593746]
[1756801532801,4.35810314,203.43,203.4,0.86]
[1756801532802,42.87810314,203.43,203.41,4.91615648]
[1756801533001,42.87810314,203.43,203.4,0.86]
[1756801533185,17.95369715,203.41,203.4,0.2]
[1756801533389,56.47369715,203.41,203.4,0.2]
[1756801534318,56.95369715,203.41,203.4,0.2]
[1756801534703,56.47369715,203.41,203.4,0.2]
[1756801535184,61.86987629,203.41,203.4,0.2]
[1756801535390,56.47369715,203.41,203.4,0.2]
[1756801535604,56.95369715,203.41,203.4,0.2]
[1756801537111,13.59559401,203.41,203.4,0.2]
[1756801537325,56.47369715,203.41,203.4,0.2]
[1756801539189,17.95369715,203.4,203.34,4.35810314]
[1756801539393,38.52,203.39,203.34,4.35810314]
[1756801539816,38.52,203.39,203.27,0.31432314]
[1756801539817,38.52,203.39,203.33,4.35810314]
[1756801540000,4.35810314,203.38,203.33,4.35810314]
[1756801540298,38.52,203.37,203.33,4.35810314]
[1756801540500,38.52,203.37,203.34,4.91787154]
[1756801541244,38.52,203.37,203.35,0.68]
[1756801541401,38.52,203.37,203.36,0.68]
[1756801541589,38.52,203.37,203.34,5.59787154]
[1756801541931,38.52,203.37,203.35,0.68]
[1756801543115,38.52,203.37,203.36,0.68]
[1756801543315,13.59559401,203.43,203.36,0.68]
[1756801543515,13.59559401,203.41,203.36,5.03810314]
[1756801543834,26.66,203.44,203.39,4.35810314]
[1756801543835,38.52,203.4,203.39,4.35810314]
[1756801544139,38.52,203.4,203.39,5.03810314]
[1756801544290,38.52,203.4,203.39,0.68]
[1756801545523,38.52,203.4,203.39,5.59666256]
[1756801545734,38.52,203.4,203.39,9.9547657]
[1756801546410,38.52,203.4,203.39,4.91666256]
[1756801546895,38.52,203.4,203.39,4.94666256]
[1756801547913,38.52,203.4,203.39,0.03]
[1756801548560,13.59559401,203.45,203.39,0.71]
[1756801548734,13.59559401,203.45,203.4,4.35810314]
[1756801548944,38.52,203.44,203.41,0.68]
[1756801549630,38.52,203.44,203.43,4.35810314]
[1756801549833,38.52,203.44,203.43,5.03810314]
[1756801550136,38.52,203.44,203.43,9.95379895]
[1756801550343,38.52,203.44,203.43,5.59569581]
[1756801552764,38.2,203.44,203.43,4.91569581]
[1756801555161,38.2,203.44,203.42,4.91593746]
[1756801555450,38.2,203.44,203.43,4.35810314]
[1756801555653,38.2,203.44,203.43,5.03810314]
[1756801556548,38.2,203.44,203.42,4.91593746]
[1756801557822,38.2,203.44,203.41,0.68]
[1756801558051,38.2,203.44,203.42,5.03810314]
[1756801558276,0.06,203.49,203.43,5.03810314]
[1756801558469,38.5,203.48,203.46,4.35810314]
[1756801558767,0.06,203.49,203.47,5.03810314]
[1756801558964,0.06,203.49,203.48,4.35810314]
[1756801559265,38.56,203.49,203.48,9.95259105]
[1756801559653,38.56,203.49,203.48,9.27259105]
[1756801559953,38.56,203.49,203.48,9.95259105]
[1756801560128,0.06,203.49,203.48,10.09475262]
[1756801561541,0.06,203.52,203.49,0.14216157]
[1756801561733,0.06,203.52,203.51,4.35810314]
[1756801562349,0.06,203.52,203.5,4.35810314]
[1756801562554,0.06,203.52,203.49,0.14216157]
[1756801562555,0.06,203.52,203.49,4.35810314]
[1756801563464,0.06,203.52,203.5,4.91400491]
[1756801564765,0.06,203.52,203.51,3.46561193]
[1756801565354,0.06,203.52,203.51,2.78561193]
[1756801565571,0.06,203.52,203.51,7.69937538]
[1756801566262,0.06,203.52,203.51,8.37937538]
[1756801568157,0.06,203.52,203.51,8.52153695]
[1756801568637,0.06,203.52,203.51,5.73592502]
[1756801568840,0.71,203.52,203.47,4.91470731]
[1756801569052,2.78561193,203.5,203.45,4.91507219]
[1756801569255,38.48,203.49,203.45,4.91507219]
[1756801569443,38.48,203.49,203.45,5.58507219]
[1756801570057,0.06,203.52,203.48,2.9277735]
[1756801570272,0.06,203.52,203.51,2.78561193]
[1756801570456,0.06,203.52,203.51,2.9277735]
[1756801570774,0.06,203.52,203.51,3.5977735]
[1756801570982,0.06,203.54,203.53,26.0]
[1756801571166,0.06,203.54,203.53,28.78561193]
[1756801571353,0.06,203.54,203.53,29.45561193]
[1756801572152,0.06,203.54,203.53,34.36889252]
[1756801572356,38.48,203.58,203.54,0.14216157]
[1756801572556,38.48,203.58,203.57,2.78561193]
[1756801573565,38.48,203.58,203.57,6.95844798]
[1756801574176,38.48,203.58,203.57,4.91231517]
[1756801574370,39.13,203.58,203.55,11.87124581]
[1756801574680,38.48,203.58,203.55,11.87124581]
[1756801574881,38.48,203.58,203.55,4.91279783]
[1756801575083,39.13,203.58,203.55,11.87124581]
[1756801575387,38.48,203.58,203.56,6.95844798]
[1756801575746,38.48,203.58,203.55,11.87124581]
[1756801575946,7.60844798,203.57,203.54,4.91297762]
[1756801576161,0.65,203.56,203.54,4.91297762]
[1756801576373,38.48,203.58,203.54,11.8714256]
[1756801576670,38.48,203.58,203.55,6.95844798]
[1756801576969,39.13,203.58,203.55,6.95844798]
[1756801577172,38.48,203.58,203.54,11.8714256]
[1756801577373,0.06,203.61,203.57,6.95844798]
[1756801577667,38.54,203.61,203.59,6.95844798]
[1756801578242,39.19,203.61,203.58,6.95844798]
[1756801578650,39.19,203.61,203.56,4.91255649]
[1756801578857,39.19,203.61,203.57,6.95844798]
[1756801579578,0.65,203.6,203.56,11.87100447]
[1756801580082,0.65,203.59,203.56,4.91255649]
[1756801580382,0.65,203.58,203.56,4.91255649]
[1756801580557,38.48,203.57,203.56,4.91255649]
[1756801580763,38.48,203.57,203.56,11.87100447]
[1756801581146,38.48,203.57,203.56,4.91255649]
[1756801581551,14.24559401,203.6,203.56,4.91255649]
[1756801581552,0.06,203.61,203.57,0.14216157]
[1756801581871,0.06,203.61,203.6,6.95844798]
[1756801582047,38.54,203.61,203.6,6.95844798]
[1756801582447,38.54,203.61,203.6,11.87003933]
[1756801583758,0.06,203.61,203.6,11.87003933]
[1756801584073,38.54,203.61,203.6,11.87003933]
[1756801585789,38.54,203.61,203.6,12.54003933]
[1756801585989,0.06,203.61,203.6,12.6822009]
[1756801587956,0.06,203.63,203.6,12.6822009]
[1756801587957,0.06,203.63,203.62,26.0]
[1756801588201,0.06,203.66,203.63,0.42648471]
[1756801588365,0.06,203.66,203.65,6.95844798]
[1756801588560,0.06,203.66,203.65,7.62844798]
[1756801588976,0.06,203.69,203.65,12.68099501]
[1756801589189,0.06,203.69,203.68,26.14216157]
[1756801589391,0.06,203.69,203.68,33.10060955]
[1756801589680,0.06,203.69,203.68,34.05493269]
[1756801589681,1e-08,203.69,203.68,34.05493269]
[1756801590688,1e-08,203.7,203.69,0.14216157]
[1756801590883,1e-08,203.7,203.69,7.77060955]
[1756801591188,1e-08,203.7,203.69,12.68003072]
[1756801591569,1e-08,203.7,203.69,12.96435386]
[1756801595492,1e-08,203.7,203.69,19.89893028]
[1756801596176,1e-08,203.7,203.69,58.33893028]
[1756801596691,1e-08,203.7,203.69,47.22451076]
[1756801598889,1e-08,203.7,203.69,8.78451076]
[1756801599076,1e-08,203.7,203.69,47.22451076]
[1756801601881,1e-08,203.7,203.69,8.78451076]
[1756801602081,1e-08,203.7,203.69,47.22451076]
[1756801602584,1e-08,203.7,203.69,8.78451076]
[1756801602783,0.68000001,203.7,203.69,4.90942117]
[1756801602989,0.68000001,203.7,203.69,7.68802605]
[1756801603190,1e-08,203.7,203.69,7.68802605]
[1756801603992,0.68000001,203.7,203.69,7.83018762]
[1756801604189,0.68000001,203.7,203.69,7.68802605]
[1756801604518,0.68000001,203.7,203.67,2.77860488]
[1756801604674,0.68,203.69,203.68,4.90966221]
[1756801604870,0.68,203.69,203.68,26.0]
[1756801605075,0.68,203.69,203.66,7.68861393]
[1756801605278,0.68,203.68,203.66,4.91000905]
[1756801605584,0.68,203.68,203.66,7.68861393]
[1756801606090,1e-08,203.7,203.66,4.91000905]
[1756801606294,0.68,203.69,203.66,7.68861393]
[1756801606487,0.68,203.68,203.66,7.68861393]
[1756801607179,1e-08,203.7,203.67,2.77860488]
[1756801607384,1e-08,203.7,203.68,2.77860488]
[1756801607588,0.68000001,203.7,203.68,2.77860488]
[1756801607905,1e-08,203.7,203.68,2.77860488]
[1756801608094,0.68,203.69,203.68,2.77860488]
[1756801609303,0.68,203.69,203.68,7.68826709]
[1756801610085,0.68,203.69,203.68,4.90966221]
[1756801610299,0.68,203.69,203.68,7.68826709]
[1756801610598,1e-08,203.7,203.69,0.14216157]
[1756801610902,1e-08,203.7,203.69,3.60076645]
[1756801611404,1e-08,203.7,203.69,8.51018762]
[1756801612990,1e-08,203.7,203.69,7.83018762]
[1756801613504,1e-08,203.7,203.69,8.51018762]
[1756801613706,1e-08,203.7,203.69,19.62460714]
[1756801613882,1e-08,203.7,203.69,19.90893028]
[1756801614088,1e-08,203.7,203.69,8.79451076]
[1756801615188,1e-08,203.7,203.69,34.79451076]
[1756801615686,1e-08,203.7,203.69,8.79451076]
[1756801618508,1e-08,203.7,203.69,19.90893028]
[1756801619496,1e-08,203.7,203.69,58.32893028]
[1756801619907,1e-08,203.7,203.69,6.01590588]
[1756801620211,1e-08,203.7,203.69,7.68802605]
[1756801620387,1e-08,203.7,203.69,19.90893028]
[1756801620708,0.06,203.73,203.72,26.0]
[1756801620889,0.06,203.74,203.72,29.20508959]
[1756801621093,0.06,203.74,203.73,3.60076645]
[1756801621689,0.06,203.74,203.73,34.50922372]
[1756801622312,0.06,203.75,203.73,34.50922372]
[1756801622515,0.06,203.75,203.74,29.60076645]
[1756801623708,0.06,203.75,203.74,34.5089828]
[1756801624525,1e-08,203.75,203.74,34.79330594]
[1756801624729,1e-08,203.75,203.74,73.21330594]
[1756801625387,0.68,203.82,203.75,0.42648471]
[1756801625700,0.68,203.82,203.74,110.02492859]
[1756801625701,0.68,203.82,203.81,4.33874969]
[1756801625918,0.68,203.82,203.81,9.24528028]
[1756801626797,0.68,203.82,203.81,4.90653059]
[1756801627102,0.68,203.82,203.8,9.24549453]
[1756801627305,0.68,203.81,203.8,9.3876561]
[1756801627825,0.68,203.81,203.75,12.26969979]
[1756801628024,0.68,203.8,203.78,4.33874969]
[1756801628230,4.33874969,203.84,203.76,5.04989615]
[1756801628529,0.68,203.79,203.76,5.04989615]
[1756801629609,0.71,203.81,203.78,9.2460026]
[1756801629811,0.71,203.8,203.79,4.33874969]
[1756801631226,0.71,203.8,203.79,9.24576181]
[1756801632321,0.71,203.8,203.78,4.33874969]
[1756801632697,4.33874969,203.83,203.78,4.48091126]
[1756801632698,0.71,203.79,203.78,4.48091126]
[1756801633115,0.71,203.81,203.78,4.48091126]
[1756801633321,0.77,203.8,203.78,4.48091126]
[1756801633931,0.71,203.79,203.77,9.24624343]
[1756801634438,0.06,203.8,203.78,4.33874969]
[1756801634603,0.77,203.8,203.78,4.33874969]
[1756801634937,0.77,203.8,203.79,4.90701212]
[1756801636130,5.10874969,203.8,203.74,4.90817754]
[1756801636316,0.71,203.79,203.74,4.90817754]
[1756801636494,0.71,203.78,203.74,4.90817754]
[1756801636695,0.71,203.77,203.74,4.90817754]
[1756801636901,0.71,203.79,203.77,4.90749374]
[1756801637121,0.06,203.8,203.77,4.90749374]
[1756801637310,0.71,203.79,203.77,4.90749374]
[1756801637513,0.06,203.8,203.77,4.90749374]
[1756801637705,0.77,203.8,203.77,4.90749374]
[1756801638120,0.77,203.8,203.77,9.24624343]
[1756801638505,0.06,203.8,203.77,9.24624343]
[1756801638902,0.06,203.8,203.77,9.94624343]
[1756801639541,0.77,203.8,203.77,9.24624343]
[1756801639828,0.77,203.8,203.76,4.90769451]
[1756801639829,0.71,203.79,203.76,4.90769451]
[1756801640602,0.06,203.8,203.76,4.90769451]
[1756801640821,0.06,203.8,203.76,9.9464442]
[1756801642410,0.06,203.8,203.76,9.2464442]
[1756801642819,0.06,203.8,203.77,0.7]
[1756801643013,0.06,203.8,203.79,30.33874969]
[1756801643426,0.06,203.8,203.79,31.03874969]
[1756801643930,0.06,203.8,203.79,31.18091126]
[1756801644310,0.06,203.8,203.79,36.08792338]
[1756801648346,0.06,203.8,203.79,31.74917369]
[1756801648536,0.06,203.8,203.79,36.08792338]
[1756801649563,0.06,203.8,203.79,26.0]
[1756801650038,0.06,203.8,203.78,4.90725291]
[1756801650238,0.06,203.8,203.79,0.14216157]
[1756801650455,0.77,203.8,203.78,4.90725291]
[1756801651020,0.77,203.8,203.78,0.14216157]
[1756801651318,0.06,203.8,203.77,9.24624343]
[1756801651552,0.06,203.8,203.78,0.14216157]
[1756801653059,0.06,203.8,203.79,4.90701212]
[1756801654640,0.77,203.8,203.77,5.04944636]
[1756801654836,0.06,203.8,203.77,9.38819605]
[1756801655140,5.10874969,203.8,203.77,5.04944636]
[1756801655349,0.06,203.8,203.77,5.74944636]
[1756801656444,0.06,203.8,203.77,10.08819605]
[1756801656648,0.06,203.8,203.77,5.04944636]
[1756801656950,0.06,203.8,203.77,5.74944636]
[1756801660349,0.06,203.8,203.78,0.67]
[1756801660753,0.06,203.8,203.79,0.67]
[1756801661132,0.06,203.8,203.79,5.15091126]
[1756801661338,0.06,203.8,203.79,10.05792338]
[1756801662340,1e-08,203.8,203.79,36.34224652]
[1756801662650,1e-08,203.8,203.79,10.34224652]
[1756801663049,1e-08,203.8,203.79,36.34224652]
[1756801663236,1e-08,203.8,203.79,14.22653878]
[1756801664953,1e-08,203.8,203.79,36.34224652]
[1756801665143,1e-08,203.8,203.79,10.34224652]
[1756801665545,1e-08,203.8,203.79,14.34514198]
[1756801666133,1e-08,203.8,203.79,32.00349683]
[1756801666336,1e-08,203.8,203.79,48.72224652]
[1756801668661,1e-08,203.8,203.79,4.90701212]
[1756801669250,1e-08,203.8,203.79,31.71917369]
[1756801669464,1e-08,203.8,203.79,5.71917369]
[1756801669840,1e-08,203.8,203.79,10.05792338]
[1756801670158,1e-08,203.8,203.79,10.34224652]
[1756801671354,1e-08,203.8,203.79,30.90701212]
[1756801672046,1e-08,203.8,203.79,31.04917369]
[1756801672240,5.0587497,203.8,203.79,26.14216157]
[1756801672463,5.0587497,203.8,203.79,0.14216157]
[1756801672654,5.0587497,203.8,203.77,4.90749374]
[1756801672852,5.05874969,203.79,203.78,0.14216157]
[1756801673049,5.05874969,203.79,203.77,30.90749374]
[1756801673353,5.05874969,203.79,203.78,0.14216157]
[1756801673557,4.33874969,203.79,203.78,0.14216157]
[1756801674266,1e-08,203.8,203.79,4.90701212]
[1756801674466,0.72000001,203.8,203.79,4.90701212]
[1756801675254,1e-08,203.8,203.79,5.04917369]
[1756801676039,5.0587497,203.8,203.79,5.04917369]
[1756801676244,5.0587497,203.8,203.79,31.04917369]
[1756801677365,1e-08,203.8,203.79,31.04917369]
[1756801677962,1e-08,203.8,203.79,36.05792338]
[1756801678670,1e-08,203.8,203.79,31.71917369]
[1756801678868,1e-08,203.8,203.79,31.04917369]
[1756801679445,5.0587497,203.8,203.79,5.04917369]
[1756801679650,4.3387497,203.8,203.79,5.04917369]
[1756801679950,1e-08,203.8,203.79,5.04917369]
[1756801680255,5.0587497,203.8,203.79,0.14216157]
[1756801680454,5.0587497,203.8,203.78,30.90720943]
[1756801680655,5.05874969,203.79,203.78,31.049371]
[1756801681247,1e-08,203.8,203.79,31.04917369]
[1756801681480,1e-08,203.8,203.79,31.71917369]
[1756801682357,1e-08,203.8,203.79,36.05792338]
[1756801683369,1e-08,203.8,203.79,36.34224652]
[1756801684192,1e-08,203.8,203.79,74.70224652]
[1756801684377,1e-08,203.8,203.79,36.34224652]
[1756801684566,1e-08,203.8,203.79,36.05792338]
[1756801687461,1e-08,203.8,203.79,34.49608333]
[1756801687659,1e-08,203.8,203.79,31.71917369]
[1756801687959,1e-08,203.8,203.79,34.49608333]
[1756801688276,1e-08,203.8,203.79,33.82608333]
[1756801688975,1e-08,203.8,203.79,31.07917369]
[1756801689178,1e-08,203.8,203.79,30.93701212]